Cogmind - Beta 13 @@@ ROGUE MODE // 2024.07.29 @ 00:01:32 Player: Sernik Result: Destroyed by Y-54 Guardian with Flak Gun Performance ------------- Evolutions (3) 1500 Regions Visited (6) 1200 Robots Destroyed (51) 255 Value Destroyed (1992) 1992 Prototype IDs (2) 40 Alien Tech Used (0) 0 Bonus (0) 0 TOTAL SCORE: 4987 Bonus ------- None Cogmind --------- Core Integrity 0/700 Matter 295/300 Energy 99/100 System Corruption 0% Temperature Cool (6) Movement Core (50) Location -7/Storage Parts ------- > --- POWER (2) -------- (None) > --- PROPULSION (3) --- (None) > --- UTILITY (4) ------ Machine Analyzer Advanced Visual Processing Unit Targeting Computer Core Analyzer > --- WEAPON (4) ------- (None) > --- INVENTORY (5) ---- Weapon Cycler Improved Light Armor Plating Improved Light Armor Plating Improved Medium Armor Plating Remote Datajack Peak State ------------ > --- POWER ------------ Light Nuclear Core Micro Nuclear Core > --- PROPULSION ------- Improved Titanium Leg Improved Titanium Leg Improved Titanium Leg > --- UTILITY ---------- Compact Matter Pod Machine Analyzer Advanced Visual Processing Unit Targeting Computer > --- WEAPON ----------- Improved Assault Rifle High-powered Shotgun High-powered Shotgun High-powered Shotgun > --- INVENTORY -------- Core Analyzer Weapon Cycler Improved Medium Armor Plating Particle Gun Remote Datajack [Rating: 42] Favorites ----------- Power Light Nuclear Core Engine Heavy Ion Engine Power Core Light Nuclear Core Propulsion Improved Titanium Leg Treads Light Treads Leg Improved Titanium Leg Hover Unit Airjet Utility Targeting Computer Device Heat Sink Storage Compact Matter Pod Processor Targeting Computer Protection Hardened Light Armor Plating Weapon High-powered Shotgun Energy Gun Particle Gun Ballistic Gun High-powered Shotgun Impact Weapon Great Maul Build | -11 -10 -9 -9 -8 -7 -7 ------- Run | Yrd Mat Mat Min Mat Fac Sto Slots Evolved 6 | . . 2 . 2 2 . Power 1 | . . . . . 1 . Propulsion 1 | . . 1 . . . . Utility 2 | . . . . 1 1 . Weapon 2 | . . 1 . 1 . . Parts Attached 53 | 5 6 6 2 25 3 6 Power 5 | 1 1 . 1 1 1 . Engine 3 | 1 1 . 1 . . . Core 2 | . . . . 1 1 . Reactor . | . . . . . . . Propulsion 19 | 2 1 4 . 9 . 3 Treads 2 | . . . . . . 2 Leg 15 | 2 1 4 . 7 . 1 Wheel . | . . . . . . . Hover 2 | . . . . 2 . . Flight . | . . . . . . . Utility 11 | . 2 1 1 5 1 1 Device 2 | . . . . 2 . . Storage 2 | . . . . 2 . . Processor 5 | . 1 . 1 1 1 1 Hackware . | . . . . . . . Protection 2 | . 1 1 . . . . Artifact . | . . . . . . . Weapon 18 | 2 2 1 . 10 1 2 Energy Gun 6 | . 2 1 . 2 . 1 Energy Cannon . | . . . . . . . Ballistic Gun 11 | 2 . . . 7 1 1 Ballistic Cannon . | . . . . . . . Launcher . | . . . . . . . Special Weapon . | . . . . . . . Impact Weapon 1 | . . . . 1 . . Slashing Weapon . | . . . . . . . Piercing Weapon . | . . . . . . . Special Melee Weapon . | . . . . . . . Unidentified Prototypes 2 | . 1 . . . 1 . Parts Lost 35 | . 3 10 . 7 . 15 Power 4 | . . 1 . 1 . 2 Propulsion 14 | . 1 5 . 2 . 6 Utility 3 | . . 1 . 1 . 1 Weapon 14 | . 2 3 . 3 . 6 Highest Loss Streak 6 | . 2 5 . 5 . 6 To Critical Strikes . | . . . . . . . Average Slot Usage (%) 78 | . 69 66 39 77 94 69 Engine 3 | . 14 8 8 3 . . Core 5 | . . . . 5 9 6 Leg 19 | . 25 23 11 17 23 13 Storage 4 | . . . . 5 7 4 Processor 17 | . 2 11 19 17 22 25 Protection 1 | . 2 7 . . . . Energy Gun 5 | . 1 16 . 5 3 1 Ballistic Gun 15 | . 21 . . 12 26 16 Impact Weapon 3 | . . . . 7 . . Naked Turns . | . . . . . . . Heaviest Build 24 | 8 15 16 8 20 24 24 Greatest Support 60 | 20 20 30 10 60 60 60 Greatest Overweight (x) 6 | . 1 . . 6 . 3 Average Overweight (x) . | . . . . . . . Largest Inventory Capacity 10 | 5 5 5 5 10 5 5 Average Capacity 5 | 5 5 5 5 5 5 5 Most Carried 5 | 5 5 5 4 5 5 5 Average Carried 4 | 1 1 3 2 4 4 4 Final Capacity 5 | 5 5 5 5 5 5 5 Final Carried 5 | 1 3 4 2 4 5 5 Class Distribution -------------------- 54% | Mutant 37% | Gunner 3% | Scavenger-Mutant Dominant Class ---------------- Mutant | -10/Materials Mutant | -9/Materials Mutant | -9/Mines Mutant | -8/Materials Gunner | -7/Factory Gunner | -7/Storage Resources | -11 -10 -9 -9 -8 -7 -7 ----------- Run | Yrd Mat Mat Min Mat Fac Sto Matter Collected 1499 | 79 310 70 20 597 139 284 Remotely . | . . . . . . . Salvage Created 2210 | . 374 293 . 730 279 534 Parts 92 | . 20 18 . 18 14 22 Haulers Intercepted . | . . . . . . . Recyclers Shooed . | . . . . . . . Parts Field Recycled . | . . . . . . . Retrieved Matter . | . . . . . . . Parts Self-Destructed . | . . . . . . . Prevented . | . . . . . . . Kills | -11 -10 -9 -9 -8 -7 -7 ------- Run | Yrd Mat Mat Min Mat Fac Sto Combat Hostiles Destroyed 41 | . 9 6 . 11 5 10 Melee 3 | . . . . 3 . . Guns 36 | . 9 6 . 6 5 10 Classes Destroyed 9 | . 1 1 . 4 2 1 Worker 4 | . . . . 3 1 . Recycler 3 | . . . . 2 . 1 Mechanic 1 | . . . . . 1 . Watcher 2 | . . . . 1 1 . Grunt 25 | . 9 4 . 7 . 5 Duelist 1 | . . . . . . 1 Sentry 10 | . . 2 . 1 3 4 Hunter 3 | . . . . 3 . . Programmer 2 | . . . . . 2 . Best Kill Streak 5 | . 3 4 . 5 3 3 Combat Bots Only 4 | . 3 4 . 2 2 3 Max Kills in Single Turn 2 | . 1 1 . 2 2 1 Gunslinging . | . . . . . . . Exploded . | . . . . . . . Melee 1 | . . . . 1 . . Uniques/NPCs Destroyed . | . . . . . . . Combat | -11 -10 -9 -9 -8 -7 -7 -------- Run | Yrd Mat Mat Min Mat Fac Sto Hostile Shots Fired 636 | . 65 98 . 134 89 250 Missed 185 | . 13 18 . 38 38 78 Damage Taken 5158 | . 588 928 . 1517 408 1717 Core 1332 | . 58 121 . 452 64 637 Absorbed by Shields . | . . . . . . . Regen/Repaired (Parts) 44 | . . 44 . . . . Core Remaining (%) 65 | 100 76 . 69 17 . . Volleys Fired 156 | . 38 25 . 40 16 37 Largest 4 | . 2 2 . 4 4 4 Hottest 140 | . 40 80 . 140 140 98 Shots Fired 338 | . 63 39 . 86 64 86 Gun 338 | . 63 39 . 86 64 86 Cannon . | . . . . . . . Launcher . | . . . . . . . Special . | . . . . . . . Kinetic 251 | . 54 . . 62 55 80 Thermal 87 | . 9 39 . 24 9 6 Explosive . | . . . . . . . Electromagnetic . | . . . . . . . Robot Hit Streak 18 | . 13 18 . 9 9 16 Robot Miss Streak 15 | . 1 7 . 5 15 5 Penetration Max . | . . . . . . . Secondary Targets 6 | . 1 1 . 2 . 2 Max Gunslinging Chain 1 | . 1 1 . 1 . 1 Shots Hit Robots 245 | . 49 29 . 66 35 66 Core Hits 140 | . 19 23 . 32 23 43 Critical Kills 3 | . . . . 3 . . Critical Parts Destroyed 8 | . 2 . . 6 . . Critical Strikes 12 | . 2 . . 10 . . Burn 1 | . . . . 1 . . Destroy 4 | . 2 . . 2 . . Smash 7 | . . . . 7 . . Melee Attacks 22 | . . . . 22 . . Impact 22 | . . . . 22 . . Slashing . | . . . . . . . Piercing . | . . . . . . . Sneak Attacks 1 | . . . . 1 . . Combat Hostiles . | . . . . . . . Follow-up Attacks . | . . . . . . . Damage Inflicted 4746 | . 488 462 . 1621 764 1411 Guns 3638 | . 488 320 . 911 764 1155 Cannons . | . . . . . . . Explosions 412 | . . . . 156 . 256 Melee 554 | . . . . 554 . . Ramming 142 | . . 142 . . . . Kinetic 2827 | . 403 . . 648 698 1078 Thermal 811 | . 85 320 . 263 66 77 Explosive 256 | . . . . . . 256 Electromagnetic 156 | . . . . 156 . . Impact 554 | . . . . 554 . . Slashing . | . . . . . . . Piercing . | . . . . . . . Highest Corruption 2 | . . 2 2 . . . Average Corruption 2 | . . 2 2 . . . Corruption Purged . | . . . . . . . Corruption Blocked . | . . . . . . . Effects 3 | . . 2 1 . . . Message Errors 1 | . . . 1 . . . Matter Fused 1 | . . 1 . . . . Data Loss (minor) 1 | . . 1 . . . . Overload Shots . | . . . . . . . Overflow Damage 327 | . . . . 261 . 66 Projectiles . | . . . . . . . Explosions 66 | . . . . . . 66 Melee 261 | . . . . 261 . . Knockbacks 3 | . . . . 3 . . Impact 3 | . . . . 3 . . Kinetic . | . . . . . . . Secondary . | . . . . . . . Self-Inflicted Damage 126 | . . 12 . 35 . 79 Shots 3 | . . . . 2 . 1 Rammed 13 | . . 13 . . . . Targets Rammed 92 | . . 92 . . . . Kicked 79 | . . 79 . . . . Crushed . | . . . . . . . Highest Temperature 297 | . 162 297 . 234 180 106 Average Temperature 67 | . 46 116 . 70 51 32 Received Heat Transfer 2091 | . 321 486 . 675 126 483 Effects 2 | . . 2 . . . . Interference 2 | . . 2 . . . . Siege Activations . | . . . . . . . Robots Corrupted . | . . . . . . . Combat Hostiles . | . . . . . . . Parts Fried 4 | . . . . 4 . . Impact Corruptions 7 | . . . . 7 . . Robots Melted . | . . . . . . . Combat Hostiles . | . . . . . . . Parts Melted . | . . . . . . . Heat Transferred 1961 | . 200 725 . 703 148 185 Parts Sabotaged . | . . . . . . . Parts Stolen . | . . . . . . . Parts Stripped . | . . . . . . . Power Chain Reactions . | . . . . . . . Alert | -11 -10 -9 -9 -8 -7 -7 ------- Run | Yrd Mat Mat Min Mat Fac Sto Peak Influence 330 | . 236 274 79 148 126 330 Initial 99 | . . 99 79 30 50 36 Average 88 | . 87 174 79 54 68 166 Maximum Alert Level 1 | . 1 1 . . . 1 Low Security (%) 91 | 100 90 61 100 100 100 71 Level 1 8 | . 9 38 . . . 28 Level 2 . | . . . . . . . Level 3 . | . . . . . . . Level 4 . | . . . . . . . Level 5 . | . . . . . . . High Security . | . . . . . . . Max Security . | . . . . . . . Squads Dispatched 11 | . 4 2 . 2 1 2 Investigation 3 | . 2 1 . . . . Extermination 1 | . . . . . 1 . Reinforcement 6 | . 2 1 . 2 . 1 Assault . | . . . . . . . Garrison 1 | . . . . . . 1 Intercept . | . . . . . . . Searches Triggered . | . . . . . . . Construction Impeded 1 | . . . . 1 . . Haulers Reinforced . | . . . . . . . Active Scanning Responses . | . . . . . . . Cargo Convoy Interrupts . | . . . . . . . Stealth | -11 -10 -9 -9 -8 -7 -7 --------- Run | Yrd Mat Mat Min Mat Fac Sto Distress Signals 4 | . 1 2 . 1 . . Communications Jammed . | . . . . . . . Distress Signals . | . . . . . . . Times Spotted 69 | . 13 12 . 20 8 16 Peak Tracking Total 7 | . 5 7 . 4 2 6 Tactical Retreats 5 | . 2 . . . . 3 Traps | -11 -10 -9 -9 -8 -7 -7 ------- Run | Yrd Mat Mat Min Mat Fac Sto Traps Triggered 5 | . 2 1 . 2 . . Indirectly . | . . . . . . . Trap Hack Attempts . | . . . . . . . Triggered . | . . . . . . . Disarmed . | . . . . . . . Reprogrammed . | . . . . . . . Reused . | . . . . . . . Traps Extracted . | . . . . . . . Installed . | . . . . . . . Triggered . | . . . . . . . Machines | -11 -10 -9 -9 -8 -7 -7 ---------- Run | Yrd Mat Mat Min Mat Fac Sto Machines Disabled 5 | . . . . 3 . 2 Max in Single Turn 2 | . . . . 2 . 2 Machines Repaired . | . . . . . . . Machines Dismantled . | . . . . . . . Machines Sabotaged . | . . . . . . . Overloaded Fab Kills . | . . . . . . . Hacking | -11 -10 -9 -9 -8 -7 -7 --------- Run | Yrd Mat Mat Min Mat Fac Sto Machines Accessed 2 | . . 1 . 1 . . Terminals . | . . . . . . . Fabricators . | . . . . . . . Repair Stations 1 | . . 1 . . . . Recycling Units . | . . . . . . . Scanalyzers 1 | . . . . 1 . . Garrison Access . | . . . . . . . Total Hacks 6 | . . 2 . 4 . . Successful 5 | . . 2 . 3 . . Failed 1 | . . . . 1 . . Catastrophic . | . . . . . . . Database Lockouts . | . . . . . . . Manual . | . . . . . . . Terminals . | . . . . . . . Fabricators . | . . . . . . . Repair Stations 2 | . . 2 . . . . Recycling Units . | . . . . . . . Scanalyzers 4 | . . . . 4 . . Garrison Access . | . . . . . . . Terminal Hacks . | . . . . . . . Fabricator Hacks . | . . . . . . . Repair Station Hacks 2 | . . 2 . . . . Scan Component 1 | . . 1 . . . . Repair 1 | . . 1 . . . . Recycling Unit Hacks . | . . . . . . . Scanalyzer 3 | . . . . 3 . . Insert Component 1 | . . . . 1 . . Analyze 2 | . . . . 2 . . Garrison Access Hacks . | . . . . . . . Unauthorized Hacks . | . . . . . . . Terminals . | . . . . . . . Fabricators . | . . . . . . . Repair Stations . | . . . . . . . Recycling Units . | . . . . . . . Scanalyzers . | . . . . . . . Garrison Access . | . . . . . . . Data Cores Recovered . | . . . . . . . Used . | . . . . . . . Hacking Detections . | . . . . . . . Full Trace Events . | . . . . . . . Feedback Events . | . . . . . . . Feedback Blocked . | . . . . . . . Robot Schematics Acquired . | . . . . . . . Robots Built . | . . . . . . . Authchips . | . . . . . . . Time . | . . . . . . . Total Robot Build Rating . | . . . . . . . Part Schematics Acquired 1 | . . . . 1 . . Parts Built . | . . . . . . . Authchips . | . . . . . . . Time . | . . . . . . . Total Part Build Rating . | . . . . . . . Parts Repaired 1 | . . 1 . . . . Time 32 | . . 32 . . . . Parts Recycled . | . . . . . . . Recycled Matter . | . . . . . . . Retrieved Matter . | . . . . . . . Retrieved Components . | . . . . . . . Parts Scanalyzed 1 | . . . . 1 . . Part Schematics Acquired 1 | . . . . 1 . . Parts Damaged . | . . . . . . . Bothacking | -11 -10 -9 -9 -8 -7 -7 ------------ Run | Yrd Mat Mat Min Mat Fac Sto Used RIF Installer . | . . . . . . . Robots Hacked . | . . . . . . . Non-combat . | . . . . . . . Combat . | . . . . . . . Robot Hacks Applied . | . . . . . . . Relay Couplers Released . | . . . . . . . Fabnet Peak Effective % . | . . . . . . . Robots Rewired . | . . . . . . . Allies Hacked . | . . . . . . . Hacks Repelled . | . . . . . . . Allies | -11 -10 -9 -9 -8 -7 -7 -------- Run | Yrd Mat Mat Min Mat Fac Sto Total Allies 2 | . . . 2 . . . Largest Group 2 | . . . 2 2 . . Highest-Rated Group 45 | . . . 45 45 . . Highest-Rated Ally 31 | . . . 31 31 . . Total Orders . | . . . . . . . Ally Attacks 3 | . . . . 3 . . Total Damage 65 | . . . . 65 . . Kills . | . . . . . . . Allies Corrupted . | . . . . . . . Allies Melted . | . . . . . . . Intel | -11 -10 -9 -9 -8 -7 -7 ------- Run | Yrd Mat Mat Min Mat Fac Sto Robot Analysis Total . | . . . . . . . Derelict Logs Recovered . | . . . . . . . Drone Launches . | . . . . . . . Drone Recoveries . | . . . . . . . Exploration | -11 -10 -9 -9 -8 -7 -7 ------------- Run | Yrd Mat Mat Min Mat Fac Sto Turns Passed 3230 | 44 290 383 45 1252 835 381 Spaces Moved 1778 | 37 136 136 34 654 568 213 Core 165 | 15 . 8 . 55 . 87 Treads 6 | . . . . . . 6 Legs 1607 | 22 136 128 34 599 568 120 Wheels . | . . . . . . . Hover . | . . . . . . . Flight . | . . . . . . . Fastest Speed 50 | 50 120 50 120 100 130 50 Average Speed 132 | 91 124 115 120 153 130 100 Slowest Speed 350 | 120 190 120 120 350 130 200 Overloaded Moves . | . . . . . . . Propulsion Burnouts . | . . . . . . . Robots Hopped . | . . . . . . . Cave-ins Triggered . | . . . . . . . Exploration Rate (%) 23 | 3 28 15 12 51 15 41 Regions Visited 6 Branch Regions 2 Pre-discovered Areas . | . . . . . . . Known Exits Taken . | . . . . . . . Unknown Exits Taken 6 | 1 1 1 1 1 1 . Scrap Searched 1 | . . . 1 . . . Spaces Dug . | . . . . . . . Terrain Destroyed 14 | . . . . . . 14 Melee . | . . . . . . . Projectile . | . . . . . . . AOE 14 | . . . . . . 14 Terrain Rammed . | . . . . . . . Walls Destroyed . | . . . . . . . Machines Disabled . | . . . . . . . Actions | -11 -10 -9 -9 -8 -7 -7 --------- Run | Yrd Mat Mat Min Mat Fac Sto Total 2323 | 47 199 306 38 794 625 314 Wait 155 | . 11 41 3 18 29 53 Move 1772 | 36 135 135 33 653 567 213 Hop . | . . . . . . . Pick Up 60 | 6 8 7 . 28 6 5 Fast Attach 2 | . . . . . 1 1 Attach 48 | 5 5 6 2 24 1 5 Detach 2 | . . . . 2 . . Swap 3 | . 1 . . 1 1 . Drop 11 | . 1 . . 6 4 . Fire 156 | . 38 25 . 40 16 37 Melee 22 | . . . . 22 . . Ram 13 | . . 13 . . . . Kick 79 | . . 79 . . . . Crush . | . . . . . . . Escape Stasis . | . . . . . . . Rewire . | . . . . . . . Trap . | . . . . . . . Miscellaneous . | . . . . . . . Route ------- -11/Scrapyard -10/Materials -9/Materials -9/Mines -8/Materials -7/Factory -7/Storage History --------- Turn | Location | Event 12 | -11/Scrapyard | Discovered new exit (range 15) 45 | -11/Scrapyard | Entered Materials 261 | -10/Materials | Discovered new exit (range 5) 322 | -10/Materials | Build established: Mutant 335 | -10/Materials | Entered another Materials area 335 | -9/Materials | Evolved 2 slots: Propulsion x1, Weapon x1 397 | -9/Materials | Repaired Hrd. Light Armor Plating 660 | -9/Materials | Discovered new exit (range 10) 669 | -9/Materials | Lost 5 parts (1p2n1u1w) 718 | -9/Materials | Entered Mines 742 | -9/Mines | Discovered new exit (range 5) 763 | -9/Mines | Entered Materials 763 | -8/Materials | Accompanied by 2 allies 763 | -8/Materials | Evolved 2 slots: Utility x1, Weapon x1 768 | -8/Materials | Led the pair of lost Derelicts to an unsafe place 1157 | -8/Materials | Core integrity fell below 50% 1206 | -8/Materials | Lost 5 parts (1n1u3w) 1937 | -8/Materials | Discovered new exit (range 19) 1978 | -8/Materials | Core integrity fell below 20% 2015 | -8/Materials | Entered Factory 2015 | -7/Factory | Evolved 2 slots: Power x1, Utility x1 2214 | -7/Factory | Build established: Gunner 2816 | -7/Factory | Discovered new exit (range 14) 2850 | -7/Factory | Entered Storage 3116 | -7/Storage | Lost 6 parts (2n1u3w) 3143 | -7/Storage | Garrison activated, responded to threat 3170 | -7/Storage | Core integrity fell below 50% 3179 | -7/Storage | Core integrity fell below 20% 3214 | -7/Storage | Lost 4 parts (1p2n1w) 3231 | -7/Storage | Destroyed by Y-54 Guardian with Flak Gun Last Messages --------------- 03174_ Acquired 20 matter. 03174_ K-01 Serf collects debris. 03175_ Acquired Lgt. Treads. 03177_ Acquired Imp. Light Armor Plating. 03178_ K-01 Serf collects debris. 03180_ R-06 Scavenger collects Imp. Deuterium Engine. 03181_ U-05 Engineer lays Concrete. 03182_ K-01 Serf collects debris. 03182_ U-05 Engineer lays Concrete. 03183_ Lgt. Treads destroyed. 03183_ K-01 Serf collects debris. 03183_ U-05 Engineer lays Concrete. 03184_ R-06 Scavenger collects Imp. Heat Sink. 03184_ U-05 Engineer lays Concrete. 03184_ K-01 Serf collects debris. 03188_ >> Machine Analyzer network decryption results: 03188_ Recycling Unit x2 03188_ K-01 Serf collects debris. Map ----- +----------------------------------------------------+ | " %/% ## T##!!! !!#???????? | | " # ## """ "##!!! !!#???????? | | # ## """ "#########???????? | | " # ## """ "#???????????????? | | " # ## ##???????????????? | | " # ## #????????????????? | | # ^### ##????????????????? | | #### ##""""" #????????????????? | | ???# # " ##???????????????? | | ???# # #???????????????? | | ???# # % #???????????????? | | ???# # #???????????????? | | ???# # ###?????????????? | | ???# / """#?????????????? | | ???# # """ R"#?????????????? | | #### # """ """#?????????????? | | # # """ ####?????????????? | | # # #???????????????? | | # ###########???????????????? | | # #?? ????????????????? | | + # """????????????????? | | # ## """?????????##?????? | | # #??!! R"?######## #?????? | | # #???! """?# Y ] #?????? | | #### ##??? ???# """ ##????? | | ??# #####+#"### """ @ "#????? | | ??# # """ T#????? | | ??# Y/ b "#????? | | ??# Y # """ ##????? | | ??# #####+###+# """ #?????? | | ??######## # """ #?????? | | ?????????# # #?????? | | ?????????# """"" ##########?????? | | ?????????# ????" #??????????????? | | ?????????# ""??" #??????????????? | | ?????????# "??"" #??????????????? | | ?????????# "???" #??????????????? | | ?????????# """"" #??????????????? | | ?????????# #??????????????? | | ?????????##########??????????????? | | ?????????????????????????????????? | | ?????????????????????????????????? | | ?????????????????????????????????? | | ?????????????????????????????????? | | ?????????????????????????????????? | | ?????????????????????????????????? | | ?????????????????????????????????? | | ?????????????????????????????????? | | ?????????????????????????????????? | | ?????????????????????????????????? | +----------------------------------------------------+ Best States ------------- Heat Dissipation 41 Energy Generation 24 Energy Capacity 280 Matter Stores 450 Matter Capacity 450 Sight Range 20 Terrain Scan Density 10 Armor Coverage 150 Evasion (%) 55 Targeting Accuracy 5 Core Analysis 6 Recoil Reduction 4 Salvage Targeting 1 Item Schematics ----------------- Imp. Titanium Leg | -8/Materials | Scanalyzed Robot Schematics ------------------ None Fabricated ------------ Nothing Alien Tech Used ----------------- None Achievements -------------- None Challenges ------------ None Game ------ Seed HardcellCatalystReplicator Manual? 0 Play Time 00:28:07 Cumulative 10.0 hours Start 2024.07.28 @ 03:58:31 End 2024.07.29 @ 00:01:32 Sessions 2 Manual Loads 0 Difficulty Rogue Special Mode None Game No. 21 Rogue 21 Adventurer 0 Explorer 0 Win Type - Total 0 Types 0/0/0/0/0/0/0/0/0 Lore% 7 Gallery% 20 Achievement% 18 Wizard Run 0 Options --------- Layout 1 ASCII 0 Keyboard 0 Movement Numpad Keybinds 0 Fullscreen 1 Font 24/Smallcaps Map View 50x35 Zoom Use 0% Tactical HUD 1 Map Filters NONE Filters NONE Steam 1 RUN: bd3e99db-0d3d-46e0-9287-82bd13ea8059